fUST/lending_fUST_20241109
["ID","MTS","AMOUNT","RATE_DAILY","PERIOD"]
[341728174,1731155439201,-512.22114221,0.00024998,2]
[341728175,1731155439211,-506.84153475,0.00024998,2]
[341728176,1731155439221,-500.0,0.00024998,2]
[341728177,1731155439230,-500.0,0.00024998,2]
[341728178,1731155439239,-643.62435138,0.00024998,2]
[341728179,1731155439248,-504.31897831,0.00024998,2]
[341728180,1731155439258,-500.0,0.00024998,2]
[341728181,1731155439268,-500.0,0.00024998,2]
[341728182,1731155439277,-500.0,0.00024998,2]
[341728183,1731155439286,-500.0,0.00024998,2]
[341728184,1731155439295,-151.0,0.00024998,7]
[341728185,1731155439304,-151.0,0.00024998,7]
[341728186,1731155439314,-151.0,0.00024998,7]
[341728187,1731155439323,-151.0,0.00024998,7]
[341728188,1731155439332,-151.0,0.00024998,7]
[341728189,1731155439342,-167.140182,0.00024998,7]
[341728190,1731155439351,-359.45162605,0.00024998,2]
[341728191,1731155439360,-500.0,0.00024998,2]
[341728192,1731155439370,-500.0,0.00024998,2]
[341728193,1731155439379,-500.0,0.00024998,2]
[341728194,1731155439388,-500.0,0.00024998,2]
[341728195,1731155439397,-505.97552978,0.00024998,2]
[341728196,1731155439408,-151.0,0.00024998,7]
[341728197,1731155439417,-151.0,0.00024998,7]
[341728198,1731155439426,-502.66137345,0.00024998,2]
[341728199,1731155439435,-151.0,0.00024998,7]
[341728200,1731155439445,-151.0,0.00024998,7]
[341728201,1731155439454,-151.0,0.00024998,7]
[341728202,1731155439464,-151.0,0.00024998,7]
[341728203,1731155439473,-151.0,0.00024998,7]
[341728204,1731155439483,-151.0,0.00024998,7]
[341728205,1731155439492,-151.0,0.00024998,7]
[341728206,1731155439501,-151.0,0.00024998,7]
[341728207,1731155439510,-151.0,0.00024998,7]
[341728208,1731155439519,-500.0,0.00024998,2]
[341728209,1731155439528,-151.0,0.00024998,7]
[341728210,1731155439538,-151.0,0.00024998,7]
[341728211,1731155439547,-210.845812,0.00024998,7]
[341728212,1731155439563,-480.0,0.00024998,2]
[341728213,1731155439573,-500.0,0.00024998,2]
[341728214,1731155439583,-500.0,0.00024998,2]
[341728215,1731155439592,-500.0,0.00024998,2]
[341728216,1731155439602,-500.0,0.00024998,2]
[341728217,1731155439612,-500.0,0.00024998,2]
[341728218,1731155439621,-500.0,0.00024998,2]
[341728219,1731155439632,-500.0,0.00024998,2]
[341728220,1731155439641,-507.4034852,0.00024998,2]
[341728221,1731155439651,-500.0,0.00024998,2]
[341728222,1731155439660,-500.0,0.00024998,2]
[341728223,1731155439669,-500.0,0.00024998,2]
[341728224,1731155439678,-500.0,0.00024998,2]
[341728225,1731155439688,-500.0,0.00024998,2]
[341728226,1731155439697,-500.0,0.00024998,2]
[341728227,1731155439706,-501.57928355,0.00024998,2]
[341728228,1731155439717,-505.08935456,0.00024998,2]
[341728229,1731155439726,-500.0,0.00024998,2]
[341728230,1731155439735,-500.0,0.00024998,2]
[341728231,1731155439745,-502.42998683,0.00024998,2]
[341728232,1731155439754,-500.0,0.00024998,2]
[341728233,1731155439763,-500.0,0.00024998,2]
[341728234,1731155439773,-500.0,0.00024998,2]
[341728235,1731155439782,-500.0,0.00024998,2]
[341728236,1731155439792,-500.0,0.00024998,2]
[341728237,1731155439801,-514.55172765,0.00024998,2]
[341728238,1731155439810,-505.16650514,0.00024998,2]
[341728239,1731155439820,-500.0,0.00024998,2]
[341728240,1731155439829,-500.0,0.00024998,2]
[341728241,1731155439838,-500.0,0.00024998,2]
[341728242,1731155439848,-500.0,0.00024998,2]
[341728243,1731155439857,-500.0,0.00024998,2]
[341728244,1731155439866,-500.0,0.00024998,2]
[341728245,1731155439876,-500.0,0.00024998,2]
[341728246,1731155439885,-500.0,0.00024998,2]
[341728247,1731155439894,-500.0,0.00024998,2]
[341728248,1731155439903,-500.0,0.00024998,2]
[341728250,1731155439913,-500.0,0.00024998,2]
[341728252,1731155439922,-500.0,0.00024998,2]
[341728254,1731155439931,-500.0,0.00024998,2]
[341728255,1731155439940,-181.58384564,0.00024998,2]
[341728257,1731155439949,-503.87536501,0.00024998,2]
[341728258,1731155439958,-500.0,0.00024998,2]
[341728259,1731155439969,-500.0,0.00024998,2]
[341728260,1731155439978,-500.0,0.00024998,2]
[341728261,1731155439987,-500.0,0.00024998,2]
[341728262,1731155439996,-500.0,0.00024998,2]
[341728263,1731155440006,-215.49538655,0.00024998,2]
[341728264,1731155440015,-500.0,0.00024998,2]
[341728265,1731155440024,-500.0,0.00024998,2]
[341728267,1731155440034,-502.67830459,0.00024998,2]
[341728268,1731155440043,-500.0,0.00024998,2]
[341728269,1731155440052,-500.0,0.00024998,2]
[341728270,1731155440062,-500.0,0.00024998,2]
[341728271,1731155440071,-500.0,0.00024998,2]
[341728272,1731155440080,-500.0,0.00024998,2]
[341728273,1731155440089,-506.56583498,0.00024998,2]
[341728274,1731155440098,-500.0,0.00024998,2]
[341728276,1731155440108,-500.0,0.00024998,2]
[341728277,1731155440117,-500.0,0.00024998,2]
[341728278,1731155440125,-502.9430145,0.00024998,2]
[341728279,1731155440135,-173.77838457,0.00024998,2]
[341728281,1731155440144,-151.0,0.00024999,7]
[341728282,1731155440152,-151.0,0.00024999,7]
[341728283,1731155440161,-151.0,0.00024999,7]
[341728284,1731155440170,-157.86687,0.00024999,7]
[341728285,1731155440179,-351.9809861,0.00024999,2]
[341728286,1731155440189,-500.0,0.00024999,2]
[341728287,1731155440198,-500.0,0.00024999,2]
[341728289,1731155440207,-622.42066516,0.00024999,2]
[341728291,1731155440217,-500.0,0.00024999,2]
[341728292,1731155440227,-500.0,0.00024999,2]
[341728293,1731155440236,-500.0,0.00024999,2]
[341728294,1731155440246,-500.0,0.00024999,2]
[341728295,1731155440255,-308.5413885,0.00025,2]
[341728296,1731155440265,-309.81114554,0.00025,2]
[341728297,1731155440274,-500.0,0.00025021,2]
[341728298,1731155440283,-503.11459292,0.00025021,2]
[341728299,1731155440292,-551.56784575,0.00025021,2]
[341728300,1731155440302,-540.24,0.00025021,2]
[341728301,1731155440311,-500.0,0.00025021,2]
[341728302,1731155440320,-500.0,0.00025021,2]
[341728303,1731155440330,-500.0,0.00025021,2]
[341728304,1731155440339,-500.0,0.00025021,2]
[341728305,1731155440348,-500.0,0.00025021,2]
[341728306,1731155440358,-503.74976183,0.00025021,2]
[341728307,1731155440367,-508.80234017,0.00025021,2]
[341728308,1731155440376,-500.0,0.00025021,2]
[341728309,1731155440385,-1000.0,0.00025022,7]
[341728310,1731155440394,-541.92,0.0002508,3]
[341728311,1731155440404,-270.96,0.0002508,3]
[341728312,1731155440413,-812.91,0.0002508,3]
[341728313,1731155440422,-10636.50915305,0.0002509,2]
[341728314,1731155440432,-1083.84,0.00025251,3]
[341728315,1731155440441,-500.0,0.00025271,2]
[341728316,1731155440450,-500.0,0.00025271,2]
[341728317,1731155440460,-500.0,0.00025271,2]
[341728318,1731155440471,-568.18155947,0.00025271,2]
[341728319,1731155440480,-500.0,0.00025271,2]
[341728320,1731155440488,-307.16922163,0.00025271,2]
[341728321,1731155440497,-257.96,0.00025271,2]
[341728322,1731155440506,-590.43088685,0.00025272,2]
[341728323,1731155440515,-500.0,0.00025272,2]
[341728324,1731155440524,-500.0,0.00025272,2]
[341728325,1731155440534,-437.61602139,0.00025272,2]
[341728326,1731155440543,-500.0,0.00025272,2]
[341728327,1731155440554,-544.38,0.00025272,2]
[341728328,1731155440565,-500.0,0.00025272,2]
[341728329,1731155440574,-394.97,0.00025272,2]
[341728330,1731155440583,-500.0,0.00025272,2]
[341728331,1731155440592,-500.0,0.00025272,2]
[341728332,1731155440602,-500.0,0.00025272,2]
[341728333,1731155440611,-500.0,0.00025272,2]
[341728334,1731155440620,-508.04,0.00025272,2]
[341728335,1731155440635,-438.78585899,0.00025272,2]
[341728336,1731155440644,-500.0,0.00025272,2]
[341728337,1731155440654,-500.0,0.00025272,2]
[341728338,1731155440663,-500.0,0.00025272,2]
[341728339,1731155440672,-500.0,0.00025272,2]
[341728340,1731155440681,-500.0,0.00025272,2]
[341728341,1731155440690,-500.0,0.00025272,2]
[341728342,1731155440700,-500.0,0.00025272,2]
[341728343,1731155440709,-500.0,0.00025272,2]
[341728344,1731155440720,-500.0,0.00025272,2]
[341728345,1731155440729,-477.69071329,0.00025272,2]
[341728346,1731155440738,-633.08250942,0.00025273,2]
[341728347,1731155440748,-500.0,0.00025273,2]
[341728348,1731155440757,-540.24,0.00025295,2]
[341728349,1731155440766,-500.0,0.00025295,2]
[341728350,1731155440775,-393.54540719,0.00025295,2]
[341728351,1731155440785,-2228.0,0.00025353,10]
[341728352,1731155440796,-1856.66,0.00025353,10]
[341728353,1731155440806,-1547.22,0.00025353,10]
[341728354,1731155440816,-243.218269,0.00025355,2]
[341728355,1731155440826,-500.0,0.00025545,2]
[341728356,1731155440836,-500.0,0.00025545,2]
[341728357,1731155440846,-500.0,0.00025545,2]
[341728358,1731155440855,-549.52,0.00025546,2]
[341728359,1731155440864,-578.06109041,0.00025546,2]
[341728360,1731155440874,-500.0,0.00025546,2]
[341728361,1731155440883,-192.46,0.00025546,2]
[341728362,1731155440892,-500.0,0.00025546,2]
[341728363,1731155440901,-500.0,0.00025546,2]
[341728364,1731155440910,-500.0,0.00025546,2]
[341728365,1731155440920,-540.24,0.00025569,2]
[341728366,1731155440929,-767.97645928,0.00025652,2]
[341728367,1731155440938,-500.0,0.00025819,2]
[341728368,1731155440948,-350.9,0.00025819,2]
[341728369,1731155440957,-500.0,0.00025819,2]
[341728370,1731155440968,-500.0,0.0002582,2]
[341728371,1731155440977,-500.0,0.0002582,2]
[341728372,1731155440986,-500.0,0.0002582,2]
[341728373,1731155440996,-540.24,0.00025843,2]
[341728374,1731155441005,-742.77831282,0.00025854,2]
[341728375,1731155441015,-500.0,0.00026093,2]
[341728376,1731155441025,-500.0,0.00026093,2]
[341728377,1731155441036,-484.44,0.00026094,2]
[341728378,1731155441047,-500.0,0.00026094,2]
[341728379,1731155441058,-500.0,0.00026094,2]
[341728380,1731155441068,-540.24,0.00026117,2]
[341728381,1731155441077,-500.0,0.00026367,2]
[341728382,1731155441086,-500.0,0.00026367,2]
[341728383,1731155441095,-500.0,0.00026368,2]
[341728384,1731155441105,-500.0,0.00026368,2]
[341728385,1731155441114,-540.24,0.00026391,2]
[341728386,1731155441123,-767.97645928,0.00026405,2]
[341728387,1731155441132,-1083.84,0.0002645,3]
[341728388,1731155441142,-541.92,0.0002645,3]
[341728389,1731155441152,-2167.68,0.00026621,3]
[341728390,1731155441161,-500.0,0.00026641,2]
[341728391,1731155441170,-500.0,0.00026641,2]
[341728392,1731155441180,-500.0,0.00026642,2]
[341728393,1731155441189,-500.0,0.00026642,2]
[341728394,1731155441199,-540.24,0.00026665,2]
[341728395,1731155441208,-742.77831282,0.00026811,2]
[341728396,1731155441219,-500.0,0.00026915,2]
[341728397,1731155441312,-500.0,0.00026915,2]
[341728398,1731155441322,-500.0,0.00026916,2]
[341728399,1731155441332,-500.0,0.00026916,2]
[341728400,1731155441342,-540.24,0.00026939,2]
[341728401,1731155441352,-500.0,0.00027,3]
[341728402,1731155441361,-767.97645928,0.00027159,2]
[341728403,1731155441371,-594.18,0.00027189,2]
[341728404,1731155441382,-500.0,0.00027189,2]
[341728405,1731155441393,-500.0,0.0002719,2]
[341728406,1731155441403,-500.0,0.0002719,2]
[341728407,1731155441413,-540.24,0.00027213,2]
[341728408,1731155441423,-3395.353948,0.00027397,2]
[341728409,1731155441433,-500.0,0.00027463,2]
[341728410,1731155441442,-500.0,0.00027464,2]
[341728411,1731155441451,-220.2157365,0.00027464,2]
[341728412,1731155441460,-540.24,0.00027487,2]
[341728413,1731155441473,-165.1,0.00027737,2]
[341728414,1731155441482,-500.0,0.00027738,2]
[341728415,1731155441491,-540.24,0.00027761,2]
[341728416,1731155441500,-742.77831282,0.00027767,2]
[341728417,1731155441509,-158.711,0.000278,30]
[341728418,1731155441518,-1000.0,0.000279,2]
[341728419,1731155441527,-767.97645928,0.00027912,2]
[341728420,1731155441536,-150.9236204,0.00027999,2]
[341728421,1731155441546,-150.02,0.00027999,2]
[341728422,1731155441558,-150.02,0.00027999,2]
[341728423,1731155441567,-150.02,0.00027999,2]
[341728424,1731155441576,-600.0,0.00027999,2]
[341728425,1731155441585,-370.9923496,0.00027999,2]
[341728426,1731155441596,-207.15965831,0.00027999,2]
[341728427,1731155441605,-283.20062218,0.00027999,2]
[341728428,1731155441614,-500.0,0.00027999,2]
[341728429,1731155441623,-500.0,0.00027999,2]
[341728430,1731155441634,-540.13836212,0.00027999,2]
[341728431,1731155441643,-500.0,0.00027999,2]
[341728432,1731155441652,-500.0,0.00027999,2]
[341728433,1731155441662,-200.0,0.00028,120]
[341728434,1731155441671,-78807.9,0.00028,5]
[341728435,1731155441680,-2271.0,0.00028,120]
[341728436,1731155441689,-201397.4521634,0.00028,2]
[341728437,1731155441699,-500.0,0.00028012,2]
[341728438,1731155441708,-540.24,0.00028035,2]
[341728439,1731155441718,-150.02,0.00028273,2]
[341728440,1731155441728,-150.02,0.00028273,2]
[341728441,1731155441737,-500.0,0.00028286,2]
[341728442,1731155441746,-540.24,0.00028309,2]
[341728443,1731155441756,-150.02,0.00028547,2]
[341728444,1731155441765,-150.02,0.00028547,2]
[341728445,1731155441775,-500.0,0.0002856,2]
[341728446,1731155441784,-540.24,0.00028583,2]
[341728447,1731155441793,-1134.2,0.000287,2]
[341728448,1731155441803,-742.77831282,0.00028723,2]
[341728449,1731155441812,-179.10455248,0.00028821,2]
[341728450,1731155441821,-150.02,0.00028821,2]
[341728451,1731155441830,-500.0,0.00028833,2]
[341728452,1731155441840,-540.24,0.00028856,2]
[341728453,1731155441849,-1000.0,0.00029,5]
[341728454,1731155441858,-185.45381347,0.00029095,2]
[341728455,1731155441868,-500.0,0.00029107,2]
[341728456,1731155441877,-540.24,0.0002913,2]
[341728457,1731155441886,-10646.54232321,0.00029195,2]
[341728458,1731155441895,-349.611451,0.00029256,2]
[341728459,1731155441904,-229.078066,0.00029256,2]
[341728460,1731155441914,-182.715338,0.00029256,2]
[341728461,1731155441923,-264.830307,0.00029256,2]
[341728462,1731155441932,-172.557036,0.00029256,2]
[341728463,1731155441941,-229.078066,0.00029256,2]
[341728464,1731155441951,-182.715338,0.00029256,2]
[341728465,1731155441960,-224.196109,0.00029256,2]
[341728466,1731155441970,-242.547046,0.00029256,2]
[341728467,1731155441981,-500.0,0.00029381,2]
[341728468,1731155441990,-150.0,0.000294,2]
[341728469,1731155441999,-540.24,0.00029404,2]
[341728470,1731155442008,-500.0,0.00029518,5]
[341728471,1731155442017,-500.0,0.00029546,5]
[341728472,1731155442026,-349.611451,0.00029621,2]
[341728473,1731155442035,-229.078066,0.00029621,2]
[341728474,1731155442044,-264.830307,0.00029621,2]
[341728475,1731155442053,-229.078066,0.00029621,2]
[341728476,1731155442062,-224.196109,0.00029621,2]
[341728477,1731155442072,-242.547046,0.00029621,2]
[341728478,1731155442081,-500.0,0.0002964,5]
[341728479,1731155442090,-503.97323902,0.0002964,5]
[341728480,1731155442099,-500.0,0.0002964,5]
[341728481,1731155442109,-500.0,0.00029655,2]
[341728482,1731155442118,-540.24,0.00029678,2]
[341728483,1731155442127,-742.77831282,0.00029679,2]
[341728484,1731155442137,-500.0,0.00029691,5]
[341728485,1731155442146,-500.0,0.00029691,5]
[341728486,1731155442156,-500.0,0.00029929,2]
[341728487,1731155442165,-540.24,0.00029952,2]
[341728488,1731155442176,-349.611451,0.00029987,2]
[341728489,1731155442185,-229.078066,0.00029987,2]
[341728490,1731155442199,-264.830307,0.00029987,2]
[341728491,1731155442208,-229.078066,0.00029987,2]
[341728492,1731155442218,-224.196109,0.00029987,2]
[341728493,1731155442228,-242.547046,0.00029987,2]
[341728494,1731155442237,-182.715338,0.00029987,2]
[341728495,1731155442246,-182.715338,0.00029987,2]
[341728496,1731155442255,-2763.83373317,0.0003,5]
[341728497,1731155442264,-1019.0,0.0003,4]
[341728498,1731155442274,-500.0,0.0003,120]
[341728499,1731155442283,-4778.0,0.0003,30]
[341728500,1731155442292,-1945.87399977,0.0003,10]
[341728575,1731155522742,694.44444444,0.00020843,2]
[341728576,1731155737434,10000.0,0.00027,60]
[341728577,1731155750629,10000.0,0.00027,60]
[341728578,1731155779913,10000.0,0.00027,60]
[341728579,1731155793608,10000.0,0.00027,60]
[341728580,1731155801285,10000.0,0.00027,60]
[341728581,1731155807828,10000.0,0.00027,60]
[341728582,1731155816737,10000.0,0.00027,60]
[341728583,1731155823993,10000.0,0.00027,60]
[341728584,1731155834328,694.44444444,0.00020843,2]
[341728585,1731155889347,5960.0,0.00027,60]
[341728586,1731155932310,10000.0,0.00027,60]
[341728587,1731155938706,10000.0,0.00027,60]
[341728589,1731155944401,10000.0,0.00027,60]
[341728590,1731155958356,10000.0,0.00027,60]
[341728591,1731155975959,10000.0,0.00027,60]
[341728592,1731155982371,10000.0,0.00027,60]
[341728593,1731155989459,10000.0,0.00027,60]
[341728594,1731155995205,10000.0,0.00027,60]
[341728595,1731156001041,10000.0,0.00027,60]
[341728597,1731156007660,10000.0,0.00027,60]
[341728598,1731156013312,10000.0,0.00027,60]
[341728599,1731156018976,10000.0,0.00027,60]
[341728600,1731156025109,10000.0,0.00027,60]
[341728601,1731156031717,10000.0,0.00027,60]
[341728602,1731156038047,10000.0,0.00027,60]
[341728603,1731156146911,694.44444444,0.00020843,2]
[341728604,1731156146937,5000.0,0.00020843,2]
[341728605,1731156177231,3544.25798678,0.00021,14]
[341728615,1731156389001,-694.44444444,0.00022505,2]
[341728616,1731156411708,-694.44444444,0.00021674,2]
[341728619,1731156459960,694.44444444,0.00020843,2]
[341728654,1731156632510,-330.69660863,0.0002331,2]
[341728656,1731156632526,-250.0,0.0002331,2]
[341728657,1731156632541,-113.74783581,0.0002331,2]
[341728658,1731156632554,-500.0,0.00023707,2]
[341728659,1731156632566,-426.96625028,0.00024955,2]
[341728792,1731156646449,-73.03374972,0.00024955,2]
[341728793,1731156646458,-471.54625329,0.00024997,2]
[341728795,1731156646470,-28.45374671,0.00024997,2]
[341728796,1731156646481,-500.0,0.00024997,2]
[341728797,1731156646491,-500.0,0.00024997,2]
[341728798,1731156646500,-500.0,0.00024997,2]
[341728799,1731156646510,-500.0,0.00024997,2]
[341728800,1731156646520,-500.0,0.00024997,2]
[341728801,1731156646529,-500.0,0.00024997,2]
[341728802,1731156646539,-505.14495653,0.00024997,2]
[341728803,1731156646549,-500.0,0.00024997,2]
[341728804,1731156646558,-501.40874256,0.00024997,2]
[341728805,1731156646568,-506.70980375,0.00024997,2]
[341728806,1731156646578,-500.0,0.00024997,2]
[341728807,1731156646588,-500.0,0.00024997,2]
[341728808,1731156646598,-217.89509234,0.00024997,2]
[341728809,1731156646609,-500.0,0.00024997,2]
[341728810,1731156646618,-500.0,0.00024997,2]
[341728811,1731156646629,-504.37363535,0.00024997,2]
[341728812,1731156646639,-500.0,0.00024997,2]
[341728813,1731156646649,-500.0,0.00024997,2]
[341728814,1731156646659,-502.00352005,0.00024997,2]
[341728815,1731156646668,-500.0,0.00024997,2]
[341728816,1731156646678,-500.0,0.00024997,2]
[341728817,1731156646689,-500.0,0.00024997,2]
[341728818,1731156646699,-500.0,0.00024997,2]
[341728819,1731156646709,-500.0,0.00024997,2]
[341728820,1731156646718,-500.0,0.00024997,2]
[341728821,1731156646728,-500.0,0.00024997,2]
[341728822,1731156646737,-64.73133961,0.00024997,2]
[341728827,1731156694116,10000.0,0.00020843,2]
[341728830,1731156737702,-694.44444444,0.00021665,2]
[341728831,1731156772328,694.44444444,0.00020843,2]
[341728834,1731157083768,694.44444444,0.00020843,2]
[341728836,1731157402535,694.44444444,0.00020843,2]
[341728837,1731157473507,496.8694338,0.00020843,2]
[341728848,1731157714956,694.44444444,0.00020843,2]
[341728928,1731157838880,-189.93,0.00022848,2]
[341728929,1731157838890,-694.44444444,0.00023454,2]
[341728931,1731157838899,-351.122417,0.00023929,2]
[341728933,1731157838908,-351.122417,0.00024614,2]
[341728934,1731157838919,-200.0,0.00024658,15]
[341728936,1731157838929,-500.0,0.00024804,2]
[341728937,1731157838938,-599.65712532,0.00024855,2]
[341728939,1731157838948,-163.72359624,0.00024995,2]
[341729055,1731157852730,163.932876,0.00013973,2]
[341729058,1731158027356,694.44444444,0.00020843,2]
[341729066,1731158338514,694.44444444,0.00020843,2]
[341729075,1731158619679,164.156738,0.00013973,2]
[341729182,1731159031912,-158.657853,0.00022352,2]
[341729183,1731159031924,-300.0,0.00022809,2]
[341729184,1731159031937,-220.62817189,0.00022809,2]
[341729205,1731159037876,-79.37182811,0.00022809,2]
[341729207,1731159037887,-5153.24233139,0.0002281,2]
[341729313,1731159039055,-3841.22615875,0.0002281,2]
[341729333,1731159042954,-1757.63275747,0.0002281,2]
[341729334,1731159042967,-1028.92117634,0.0002281,2]
[341729828,1731159270694,435.57327231,0.00031677,51]
[341729843,1731159641800,162.721245,0.00013973,2]
[341729846,1731159680224,3000.0,0.00031685,84]
[341729849,1731159795075,1185.0,0.00031687,109]
[341729856,1731159867213,263.3035561,0.00020806,2]
[341729859,1731159962230,2788.0021696,0.00020806,2]
[341729867,1731160145231,1995.316886,0.00020659,2]
[341729868,1731160167877,246.703337,0.00020627,2]
[341729870,1731160177208,250.0,0.00020608,2]
[341729877,1731160203315,5703.4375937,0.00020608,2]
[341729878,1731160214256,220.979794,0.00020616,2]
[341730012,1731160238139,-230.20457665,0.00020921,2]
[341730013,1731160238148,-202.0342113,0.00020931,2]
[341730014,1731160238158,-159.079105,0.00020938,2]
[341730015,1731160238167,-487.9807815,0.00021021,2]
[341730016,1731160238177,-1995.316886,0.00021344,2]
[341730017,1731160238186,-300.0,0.00021573,2]
[341730018,1731160238195,-300.0,0.00021573,2]
[341730019,1731160238204,-10100.508374,0.00021574,2]
[341730020,1731160238214,-7812.2163555,0.00021695,2]
[341730021,1731160238225,-4511.306498,0.0002173,2]
[341730022,1731160238236,-151.0,0.0002173,2]
[341730023,1731160238247,-151.0,0.00021812,2]
[341730024,1731160238256,-151.0,0.00021812,2]
[341730025,1731160238265,-151.0,0.00021812,2]
[341730026,1731160238275,-1457.39730412,0.00021917,2]
[341730027,1731160238284,-500.0,0.00021917,2]
[341730028,1731160238296,-500.0,0.00021917,2]
[341730029,1731160238305,-503.29034906,0.00021917,2]
[341730030,1731160238315,-500.0,0.00021917,2]
[341730031,1731160238324,-500.0,0.00021917,2]
[341730032,1731160238334,-511.55255675,0.00021917,2]
[341730033,1731160238344,-506.34619409,0.00021917,2]
[341730034,1731160238353,-500.0,0.00021917,2]
[341730035,1731160238364,-191.58054379,0.00021917,2]
[341730036,1731160238374,-507.27415853,0.00021917,2]
[341730037,1731160238383,-500.0,0.00021917,2]
[341730038,1731160238392,-500.0,0.00021917,2]
[341730039,1731160238402,-302.12224704,0.00021917,2]
[341730040,1731160238411,-500.0,0.00021917,2]
[341730041,1731160238420,-500.0,0.00021917,2]
[341730042,1731160238429,-500.0,0.00021917,2]
[341730043,1731160238439,-500.0,0.00021917,2]
[341730044,1731160238448,-500.0,0.00021917,2]
[341730045,1731160238457,-500.0,0.00021917,2]
[341730046,1731160238466,-500.0,0.00021917,2]
[341730047,1731160238476,-500.0,0.00021917,2]
[341730048,1731160238485,-500.0,0.00021917,2]
[341730049,1731160238494,-500.0,0.00021917,2]
[341730050,1731160238503,-151.0,0.00021917,2]
[341730051,1731160238513,-156.293085,0.00021917,2]
[341730052,1731160238522,-502.22352179,0.00021917,2]
[341730053,1731160238531,-525.1208139,0.00021917,2]
[341730054,1731160238540,-502.55363023,0.00021917,2]
[341730055,1731160238550,-509.94685199,0.00021917,2]
[341730056,1731160238559,-491.13386687,0.00021917,2]
[341730057,1731160238568,-500.0,0.00021917,2]
[341730058,1731160238577,-500.0,0.00021917,2]
[341730059,1731160238587,-500.0,0.00021917,2]
[341730060,1731160238596,-500.0,0.00021917,2]
[341730061,1731160238606,-509.48107672,0.00021917,2]
[341730062,1731160238616,-500.0,0.00021917,2]
[341730063,1731160238626,-506.03856463,0.00021917,2]
[341730064,1731160238636,-202.38596428,0.00021917,2]
[341730065,1731160238645,-500.0,0.00021917,2]
[341730066,1731160238654,-151.0,0.00021917,2]
[341730067,1731160238664,-151.0,0.00021917,2]
[341730068,1731160238673,-151.0,0.00021917,2]
[341730069,1731160238682,-151.0,0.00021917,2]
[341730070,1731160238691,-151.0,0.00021917,2]
[341730071,1731160238700,-500.0,0.00021917,2]
[341730072,1731160238710,-500.0,0.00021917,2]
[341730073,1731160238719,-151.0,0.00021917,2]
[341730074,1731160238728,-151.0,0.00021917,2]
[341730075,1731160238737,-151.0,0.00021917,2]
[341730076,1731160238746,-198.343496,0.00021917,2]
[341730077,1731160238755,-508.70367193,0.00021917,2]
[341730078,1731160238764,-163.332811,0.00021918,2]
[341730079,1731160238775,-151.0,0.00021918,7]
[341730080,1731160238784,-151.0,0.00021928,7]
[341730081,1731160238793,-2975.274622,0.00021931,7]
[341730082,1731160238803,-2975.274622,0.00021931,7]
[341730083,1731160238812,-151.0,0.00021931,7]
[341730084,1731160238822,-151.0,0.00021931,7]
[341730085,1731160238831,-151.0,0.00021931,7]
[341730086,1731160238840,-151.0,0.00021931,7]
[341730087,1731160238849,-151.0,0.00021931,7]
[341730088,1731160238860,-151.0,0.00021931,7]